bitfinex/quotes_ETHUSD_20250505
["timestamp","ask_amount","ask_price","bid_price","bid_amount"]
[1746458452626,5.82928119,1812.0,1811.7,10.14285247]
[1746458453093,5.5187803,1812.0,1811.7,4.62325838]
[1746458453646,5.5187803,1812.0,1811.7,10.14289045]
[1746458453812,5.51859711,1812.1,1811.7,10.14274694]
[1746458453997,5.51859711,1812.1,1811.8,1.01428904]
[1746458454542,0.31054262,1812.0,1811.8,1.01428904]
[1746458455457,5.51859711,1812.1,1811.8,1.01428904]
[1746458457135,0.31054647,1812.0,1811.8,1.01428904]
[1746458457431,0.31054647,1812.0,1811.9,0.21811284]
[1746458457633,0.31054647,1812.0,1811.8,6.5335945]
[1746458457808,0.31054647,1812.0,1811.9,0.65335945]
[1746458458010,5.51859711,1812.1,1811.9,0.87147229]
[1746458458715,5.51798566,1812.3,1812.0,0.7545]
[1746458458920,0.31053123,1812.2,1812.0,0.7545]
[1746458459124,0.31053123,1812.2,1812.1,0.21768826]
[1746458459800,5.82868595,1812.2,1812.1,0.21768826]
[1746458459999,0.31053123,1812.2,1812.1,0.21768826]
[1746458460697,5.82868595,1812.2,1812.1,0.21768826]
[1746458461604,11.34713418,1812.2,1811.8,12.42024836]
[1746458461927,5.51847445,1812.1,1811.9,0.21811284]
[1746458462133,5.82900568,1812.1,1811.8,14.60116055]
[1746458462298,5.51847445,1812.1,1812.0,0.21790054]
[1746458462497,5.82918107,1812.1,1811.8,14.60116055]
[1746458462704,0.31070662,1812.1,1812.0,0.21790054]
[1746458462914,0.31070662,1812.1,1811.9,0.21811284]
[1746458463116,0.31070662,1812.1,1811.8,14.60116055]
[1746458463336,11.0365536,1812.2,1812.0,0.21790054]
[1746458463603,0.31073634,1812.1,1811.8,12.42012279]
[1746458463798,0.31073634,1812.1,1811.9,1.29719718]
[1746458464032,0.31073634,1812.1,1811.9,6.81613476]
[1746458464236,5.51818861,1812.2,1811.9,10.02818747]
[1746458464542,5.51818861,1812.2,1811.9,1.24201228]
[1746458465233,0.31079922,1812.1,1811.9,1.29719719]
[1746458465741,5.82929979,1812.1,1811.9,1.29719719]
[1746458466042,0.31079922,1812.0,1811.8,6.28010077]
[1746458467050,5.51818861,1812.2,1811.8,6.28010077]
[1746458467340,11.03663087,1812.2,1811.8,6.28010077]
[1746458467719,11.03659924,1812.2,1811.8,6.28010077]
[1746458467921,0.31084755,1812.1,1811.8,6.28010077]
[1746458468133,0.31084755,1812.1,1811.8,8.46099759]
[1746458468345,0.31084755,1812.1,1811.8,8.460949]
[1746458468509,0.31084755,1812.1,1812.0,0.7501]
[1746458469246,0.31084755,1812.1,1812.0,6.26886379]
[1746458469550,5.51757253,1812.4,1812.0,11.78762758]
[1746458469847,5.51786672,1812.3,1812.0,6.26886379]
[1746458470018,0.31073,1812.2,1812.0,0.7501]
[1746458470619,0.31073,1812.1,1812.0,0.7501]
[1746458471165,5.8293014,1812.1,1811.9,4.703]
[1746458471366,5.82949379,1812.0,1811.8,6.14]
[1746458471572,5.51906838,1811.9,1811.5,14.66270618]
[1746458471706,5.51906838,1811.9,1811.5,14.66249603]
[1746458471906,5.82967298,1812.0,1811.6,5.57513599]
[1746458472141,6.10155461,1812.1,1811.7,5.51950969]
[1746458472318,5.51832407,1812.2,1811.8,6.33761994]
[1746458472514,5.51832407,1812.2,1811.8,6.50009944]
[1746458472722,5.51848552,1812.1,1811.8,6.50009944]
[1746458473054,0.31090754,1812.1,1811.8,6.50009944]
[1746458473346,5.82939108,1812.1,1811.8,6.50009944]
[1746458473534,5.82939108,1812.1,1811.8,0.98097058]
[1746458473734,5.51878437,1812.0,1811.8,0.98097058]
[1746458474715,0.31091324,1811.9,1811.8,0.98097058]
[1746458475548,5.82998162,1811.9,1811.8,0.21767058]
[1746458476350,5.82998162,1811.9,1811.6,10.03267667]
[1746458476642,5.51906838,1811.9,1811.8,0.21767058]
[1746458477436,5.51951158,1811.8,1811.5,14.05505271]
[1746458477746,0.3109439,1811.7,1811.5,10.843]
[1746458477926,5.51998233,1811.6,1811.5,10.843]
[1746458478129,0.3109439,1811.7,1811.5,6.14]
[1746458478333,0.3109439,1811.7,1811.6,0.614]
[1746458478626,5.51955553,1811.8,1811.5,14.87227834]
[1746458479240,11.03847803,1811.9,1811.5,14.87222028]
[1746458479460,5.51915909,1811.9,1811.5,14.87222028]
[1746458479737,5.8302654,1811.8,1811.5,14.87222028]
[1746458480044,0.31082076,1811.8,1811.5,14.87215689]
[1746458480249,0.31082076,1811.8,1811.5,17.36206182]
[1746458480450,5.51915909,1811.9,1811.5,17.36206182]
[1746458480627,11.03847191,1811.9,1811.5,17.36206182]
[1746458481259,5.51915909,1811.9,1811.5,17.36206182]
[1746458481549,5.51915909,1811.9,1811.5,22.88212585]
[1746458481751,5.51915909,1811.9,1811.5,17.36202167]
[1746458481927,0.31077428,1811.8,1811.6,6.40135953]
[1746458482123,0.31077428,1811.8,1811.7,8.73173036]
[1746458482371,0.31077428,1811.8,1811.7,9.55803036]
[1746458482515,5.51834091,1812.2,1811.9,5.519017]
[1746458482715,5.51834091,1812.2,1811.9,8.73106971]
[1746458483157,5.51785024,1812.3,1811.8,6.14]
[1746458483341,5.51895697,1812.0,1811.8,6.14]
[1746458483522,5.82933906,1812.1,1811.8,6.14]
[1746458483855,11.34803617,1812.1,1811.8,6.14]
[1746458484042,5.51877423,1812.0,1811.8,6.14]
[1746458484355,0.31071945,1811.9,1811.8,6.14]
[1746458485056,5.82978783,1811.9,1811.8,6.14]
[1746458485529,5.51950383,1811.8,1811.6,11.11469083]
[1746458485740,11.34920994,1811.9,1811.6,5.5263]
[1746458485924,11.03849049,1811.9,1811.6,0.8263]
[1746458486579,5.83014379,1811.8,1811.6,0.8263]
[1746458486760,5.83014379,1811.8,1811.5,9.95790335]
[1746458487045,5.83014379,1811.8,1811.5,12.4409401]
[1746458487245,5.51939139,1811.8,1811.6,0.16958165]
[1746458487848,11.03852034,1811.9,1811.6,0.16958165]
[1746458488145,5.51898699,1812.0,1811.6,8.95670342]
[1746458488554,5.51910041,1811.9,1811.6,8.95670342]
[1746458488859,5.51898699,1812.0,1811.6,11.56645722]
[1746458489068,5.51907392,1811.9,1811.6,11.51126238]
[1746458490160,5.51907392,1811.9,1811.6,5.99138816]
[1746458490369,5.51957765,1811.8,1811.6,0.16958165]
[1746458490556,5.51907392,1811.9,1811.6,0.16958165]
[1746458491067,5.51907392,1811.9,1811.6,5.68954545]
[1746458491366,0.31069571,1811.8,1811.6,5.68954545]
[1746458491733,5.51907392,1811.9,1811.6,5.68954545]
[1746458492268,5.51909055,1811.9,1811.6,5.68954545]
[1746458492467,5.51909055,1811.9,1811.6,7.65966371]
[1746458492672,5.51909055,1811.9,1811.6,7.60447132]
[1746458492969,5.51909055,1811.9,1811.6,2.08450752]
[1746458493569,0.3106868,1811.8,1811.6,2.08450752]
[1746458493960,0.3106868,1811.8,1811.6,7.60443506]
[1746458494164,5.51909055,1811.9,1811.6,7.65962752]
[1746458494350,5.51909055,1811.9,1811.6,7.60443506]
[1746458495172,5.51881885,1812.0,1811.6,16.33629419]
[1746458495340,5.51881885,1812.0,1811.7,0.7696]
[1746458495540,5.51881885,1812.0,1811.7,6.4572753]
[1746458495742,0.31070407,1811.9,1811.7,6.4572753]
[1746458496272,5.51881885,1812.0,1811.7,0.93770981]
[1746458496489,11.03782982,1812.0,1811.7,0.93770981]
[1746458497194,5.51835116,1812.2,1811.7,2.0961573]
[1746458497482,0.31070425,1812.1,1812.0,0.7628]
[1746458497683,0.31070425,1812.1,1812.0,9.54879722]
[1746458497871,0.31070425,1812.1,1812.0,9.71626948]
[1746458498069,15.73496137,1812.5,1812.1,5.51842799]
[1746458498382,5.51756437,1812.4,1812.2,0.16704773]
[1746458498588,5.51756437,1812.4,1812.0,9.49341119]
[1746458498745,5.51756437,1812.4,1812.3,0.1668355]
[1746458498946,5.51756437,1812.4,1812.1,5.5184085]
[1746458499182,5.51756437,1812.4,1812.3,0.1668355]
[1746458499380,5.51756437,1812.4,1812.1,5.5184085]
[1746458499554,5.51756437,1812.4,1812.3,0.1668355]
[1746458500084,5.82813046,1812.4,1812.3,0.1668355]
[1746458500244,5.82813046,1812.4,1812.0,9.49339453]
[1746458500439,5.51756437,1812.4,1812.3,0.16311799]
[1746458500680,5.51756437,1812.4,1812.0,6.28134182]
[1746458500978,15.73489994,1812.5,1812.1,5.51833466]
[1746458501139,10.21741946,1812.5,1812.1,5.68187713]
[1746458501342,5.82808131,1812.4,1812.1,5.68187713]
[1746458501574,5.82808131,1812.4,1812.1,7.1994043]
[1746458502080,0.31053164,1812.3,1812.1,7.1994043]
[1746458502650,0.31053164,1812.3,1812.2,5.51815472]
[1746458502975,0.31053164,1812.3,1812.2,4.20670065]
[1746458503180,0.31053164,1812.3,1812.2,9.78003401]
[1746458503344,0.31053164,1812.3,1812.2,11.46163232]
[1746458503543,0.31053164,1812.3,1812.2,11.40645368]
[1746458503944,5.51653011,1812.8,1812.4,5.51738953]
[1746458504504,5.51653011,1812.8,1812.5,0.1620949]
[1746458504795,0.31011752,1812.7,1812.5,5.6792334]
[1746458504949,0.31011752,1812.7,1812.5,6.4993334]
[1746458505353,5.51637379,1812.8,1812.5,7.70091926]
[1746458505551,5.51637379,1812.8,1812.5,2.18386093]
[1746458506101,5.51637379,1812.8,1812.5,7.70109704]
[1746458506309,5.51618634,1812.9,1812.5,7.70109704]
[1746458506851,0.30976686,1812.8,1812.6,5.51692848]
[1746458507057,5.51618634,1812.9,1812.7,0.16063667]
[1746458507253,5.51618634,1812.9,1812.5,7.53881451]
[1746458507459,5.51618634,1812.9,1812.6,0.16084881]
[1746458507772,11.03245806,1812.9,1812.6,0.16084881]
[1746458507996,5.51618634,1812.9,1812.6,0.16084881]
[1746458508203,5.51618634,1812.9,1812.6,5.67778297]
[1746458508352,5.51618634,1812.9,1812.7,0.7739]
[1746458508557,5.51591496,1813.0,1812.7,0.93453667]
[1746458508783,11.03188598,1813.0,1812.7,0.93453667]
[1746458508994,5.51591496,1813.0,1812.7,0.93453667]
[1746458509192,5.51617663,1812.9,1812.7,0.93453667]
[1746458509906,5.51586737,1813.0,1812.7,0.93453667]
[1746458510053,5.51586737,1813.0,1812.7,0.98969724]
[1746458510758,5.5159106,1813.0,1812.7,0.93453667]
[1746458510959,11.03191058,1813.0,1812.7,0.93453667]
[1746458511155,5.5159106,1813.0,1812.7,0.93453667]
[1746458511497,5.51625549,1812.9,1812.7,0.93453667]
[1746458511695,5.51632833,1812.8,1812.7,0.93453667]
[1746458512190,5.51589042,1813.0,1812.7,0.93453667]
[1746458512494,5.51593247,1813.0,1812.7,0.93453667]
[1746458512665,11.03191563,1813.0,1812.7,0.93453667]
[1746458513072,11.03193155,1813.0,1812.7,0.93453667]
[1746458513301,5.51593247,1813.0,1812.7,0.93453667]
[1746458513718,5.51606145,1812.9,1812.7,0.93453667]
[1746458514405,5.51593247,1813.0,1812.7,0.98969729]
[1746458514909,11.03188103,1813.0,1812.7,0.93453667]
[1746458515067,5.51593247,1813.0,1812.7,0.93453667]
[1746458515505,5.51603885,1812.9,1812.7,0.93453667]
[1746458516310,5.51632833,1812.8,1812.7,0.16063667]
[1746458516485,5.51603885,1812.9,1812.6,7.38962404]
[1746458516683,5.51603885,1812.9,1812.7,0.15715434]
[1746458516885,5.51588419,1813.0,1812.6,12.96171673]
[1746458517099,10.21119378,1813.2,1812.7,0.15715434]
[1746458517311,5.51613173,1812.9,1812.6,12.9065147]
[1746458517608,5.51592314,1813.0,1812.8,0.15694223]
[1746458517802,5.51592314,1813.0,1812.7,5.67377537]
[1746458517988,5.51592314,1813.0,1812.9,0.15673014]
[1746458518181,5.82465114,1813.1,1812.7,5.5164975]
[1746458518402,5.82465114,1813.1,1812.9,0.15673014]
[1746458518403,5.51565183,1813.1,1812.9,0.15673014]
[1746458518599,11.03130797,1813.1,1812.8,0.93254223]
[1746458518787,5.51565183,1813.1,1813.0,0.15651808]
[1746458518988,11.03132202,1813.1,1812.8,0.7756]
[1746458519187,5.51565183,1813.1,1813.0,0.15651808]
[1746458519699,11.03133654,1813.1,1812.8,0.7756]
[1746458519870,11.03133654,1813.1,1812.9,0.15673014]
[1746458520074,11.03133654,1813.1,1812.8,1.40480975]
[1746458520274,5.5157198,1813.0,1812.9,0.15673014]
[1746458520477,5.5157198,1813.0,1812.8,1.40480975]
[1746458520675,5.5157198,1813.0,1812.9,0.15673014]
[1746458520902,5.5157198,1813.0,1812.8,1.40480975]
[1746458521210,5.5157198,1813.0,1812.9,0.15673014]
[1746458521507,5.5157198,1813.0,1812.8,1.40480975]
[1746458521680,5.5157198,1813.0,1812.9,0.15673014]
[1746458521875,5.5157198,1813.0,1812.8,1.40480975]
[1746458522209,5.51602404,1812.9,1812.7,6.14]
[1746458522411,5.51602404,1812.9,1812.7,7.4236632]
[1746458523486,5.51503219,1813.3,1812.9,5.51592047]
[1746458523804,5.51467829,1813.4,1813.1,0.7654]
[1746458524015,5.51467829,1813.4,1813.1,1.17364228]
[1746458524194,5.51434786,1813.5,1813.1,7.97184539]
[1746458524370,5.51434786,1813.5,1813.1,7.97180201]
[1746458524577,5.51468161,1813.4,1813.1,7.97185062]
[1746458524899,5.51434786,1813.5,1813.1,7.97185062]
[1746458525073,5.51434786,1813.5,1813.1,2.45655773]
[1746458525570,11.02939449,1813.4,1813.1,2.45655773]
[1746458525774,5.5151114,1813.2,1813.1,2.45655773]
[1746458525986,5.51483746,1813.3,1813.1,2.45655773]
[1746458526610,5.51541558,1813.1,1813.0,6.14]
[1746458526909,5.51499061,1813.3,1813.0,6.14]
[1746458527103,5.51512128,1813.2,1813.0,6.14]
[1746458527411,5.51541558,1813.1,1813.0,6.14]
[1746458527609,5.51512128,1813.2,1812.9,0.7879]
[1746458527810,5.51512128,1813.2,1812.9,2.29112244]
[1746458528010,5.51423627,1813.5,1812.7,17.17812945]
[1746458528011,5.51480725,1813.3,1812.7,17.17812945]
[1746458528323,5.51563043,1813.1,1812.7,19.76663361]
[1746458528532,5.51563043,1813.1,1812.7,14.25000416]
[1746458528899,5.51572798,1813.0,1812.7,14.25000416]
[1746458529105,11.03168842,1813.0,1812.7,10.81438553]
[1746458529287,5.51626564,1812.9,1812.7,2.90733282]
[1746458529486,5.51626564,1812.9,1812.6,0.41832404]
[1746458529689,5.5158676,1813.0,1812.7,5.51663046]
[1746458529887,5.51618674,1812.9,1812.5,10.68979004]
[1746458530127,5.51618674,1812.9,1812.5,16.20680601]
[1746458530437,5.51618674,1812.9,1812.6,1.6206806]
[1746458530723,7.90605271,1813.3,1812.6,1.6206806]
[1746458530935,5.51621632,1812.9,1812.6,0.05516244]
[1746458531295,5.51652116,1812.8,1812.6,0.05516244]
[1746458531493,5.51652116,1812.8,1812.5,11.10162966]
[1746458531711,5.51652116,1812.8,1812.5,5.58440829]
[1746458532120,5.51612583,1812.9,1812.6,0.15491861]
[1746458532802,5.51612583,1812.9,1812.6,0.2100811]
[1746458533001,5.51612583,1812.9,1812.6,7.40986047]
[1746458533329,11.03185776,1813.0,1812.7,0.7869]
[1746458533503,11.03185776,1813.0,1812.7,0.94160647]
[1746458533711,5.5155374,1813.1,1812.7,0.94160647]
[1746458534007,5.5155374,1813.1,1812.8,0.05516244]
[1746458534206,5.5155374,1813.1,1812.8,5.72665065]
[1746458534615,5.51523626,1813.2,1812.8,7.19569727]
[1746458534820,0.31033008,1813.1,1812.8,7.19569727]
[1746458535215,0.31033008,1813.1,1812.8,7.19555429]
[1746458535533,11.0306046,1813.2,1812.9,0.8062]
[1746458535697,5.51541687,1813.1,1812.9,0.96118931]
[1746458536439,0.31036386,1813.0,1812.9,0.96118931]
[1746458536622,0.31036386,1813.0,1812.9,1.76134353]
[1746458537908,0.31036386,1813.0,1812.9,7.27736757]
[1746458538099,0.31036386,1813.0,1812.9,10.5445754]
[1746458538305,0.31036386,1813.0,1812.9,10.48942028]
[1746458538504,5.51495344,1813.3,1812.9,7.27736757]
[1746458538834,5.5151967,1813.2,1813.0,0.72773676]
[1746458539005,5.51495344,1813.3,1813.0,0.72773676]
[1746458539205,11.03002577,1813.3,1813.1,0.15358621]
[1746458539576,5.51495344,1813.3,1813.1,0.15358621]
[1746458539743,0.31037887,1813.2,1813.1,0.15358621]
[1746458540045,0.31037887,1813.2,1813.1,1.38661498]
[1746458540947,5.51461833,1813.4,1813.1,1.38661498]
[1746458541653,0.31023903,1813.3,1813.1,1.38661498]
[1746458541852,5.51461833,1813.4,1813.1,1.38661498]
[1746458542143,5.51461833,1813.4,1813.1,6.90199246]
[1746458542325,5.51461833,1813.4,1813.2,0.69019925]
[1746458542526,5.51461833,1813.4,1813.2,0.15337419]
[1746458542726,11.0293622,1813.4,1813.1,1.23302877]
[1746458542925,5.51461833,1813.4,1813.3,0.15316219]
[1746458543159,5.5154144,1813.2,1813.0,6.86773676]
[1746458543320,5.5154144,1813.2,1813.0,6.14]
[1746458543838,5.51493959,1813.3,1813.0,7.38621973]
[1746458544015,0.31021808,1813.2,1813.0,7.38621973]
[1746458544221,5.51541558,1813.1,1813.0,6.14]
[1746458544617,5.82563366,1813.1,1813.0,6.14]
[1746458546551,5.51706516,1812.6,1812.4,10.62972809]
[1746458546860,5.51682724,1812.7,1812.4,10.00726024]
[1746458547102,5.51654152,1812.8,1812.4,10.00726024]
[1746458547265,5.51654152,1812.8,1812.5,1.13025684]
[1746458547827,5.51663931,1812.7,1812.5,1.13025684]
[1746458548128,5.51693699,1812.6,1812.5,0.12953082]
[1746458548851,5.82693083,1812.7,1812.5,0.12953082]
[1746458548852,11.34380364,1812.7,1812.5,0.12953082]
[1746458549056,11.03351069,1812.7,1812.5,0.12953082]
[1746458549436,5.51693699,1812.6,1812.5,0.12953082]
[1746458549827,5.51693699,1812.6,1812.3,5.51782451]
[1746458550027,5.51663931,1812.7,1812.5,0.12953082]
[1746458550255,5.51663931,1812.7,1812.4,0.68152545]
[1746458550455,5.51663931,1812.7,1812.6,0.12931866]
[1746458550969,5.51697756,1812.6,1812.3,5.51783183]
[1746458551159,5.51663931,1812.7,1812.4,0.129743]
[1746458551360,5.51663931,1812.7,1812.3,5.51783183]
[1746458551668,5.51663931,1812.7,1812.4,0.129743]
[1746458552067,5.51663931,1812.7,1812.3,7.78471442]
[1746458552257,5.51663931,1812.7,1812.5,0.12953082]
[1746458552461,5.51697219,1812.6,1812.4,0.129743]
[1746458552656,5.51845924,1812.1,1812.0,3.68102809]
[1746458552967,5.5182871,1812.2,1812.0,3.68102809]
[1746458553168,10.20906825,1812.6,1812.2,5.51804258]
[1746458553381,10.20906825,1812.6,1812.1,9.5620911]
[1746458553681,5.51737614,1812.5,1812.1,15.08036172]
[1746458553881,15.72627358,1812.6,1812.2,7.08127288]
[1746458554086,5.51679508,1812.7,1812.3,6.32078947]
[1746458554376,5.51704537,1812.6,1812.3,0.85827163]
[1746458554691,5.51704537,1812.6,1812.3,0.8031]
[1746458555872,5.51785024,1812.3,1812.2,6.14]
[1746458556179,5.51778084,1812.4,1812.2,6.14]
[1746458556779,5.51732899,1812.5,1812.2,6.14]
[1746458557574,5.51732899,1812.5,1812.1,0.7578]
[1746458557879,5.51732899,1812.5,1812.1,7.98679862]
[1746458558380,5.51732899,1812.5,1812.2,5.5181309]
[1746458558585,11.03483711,1812.5,1812.1,7.98679862]
[1746458558774,5.51732899,1812.5,1812.1,13.50504542]
[1746458558947,5.51732899,1812.5,1812.2,5.51812239]
[1746458559381,5.51732899,1812.5,1812.1,7.98679862]
[1746458560077,5.51775057,1812.4,1812.1,2.46863854]
[1746458560253,5.51732899,1812.5,1812.1,7.98708318]
[1746458560461,5.51732899,1812.5,1812.2,5.51812012]
[1746458561785,5.51732899,1812.5,1812.2,6.86862142]
[1746458562183,11.03480315,1812.5,1812.3,0.12317378]
[1746458562493,5.51732899,1812.5,1812.3,0.12317378]
[1746458562850,5.51732899,1812.5,1812.2,5.51812021]
[1746458563183,11.0348558,1812.5,1812.3,0.12317378]
[1746458563478,5.51732899,1812.5,1812.1,6.27608497]
[1746458563684,5.51732899,1812.5,1812.4,0.12296157]
[1746458563853,5.51732899,1812.5,1812.1,6.27608497]
[1746458564053,5.51732899,1812.5,1812.4,0.12296157]
[1746458564551,5.51732899,1812.5,1812.1,6.27604979]
[1746458564887,5.51732899,1812.5,1812.2,0.12338601]
[1746458565254,5.51732899,1812.5,1812.1,11.79428568]
[1746458565456,5.51732899,1812.5,1812.3,0.12317378]
[1746458565656,5.51732899,1812.5,1812.2,0.12338601]
[1746458565851,5.51732899,1812.5,1812.4,0.12296157]
[1746458566056,5.51732899,1812.5,1812.3,0.12317378]
[1746458566355,5.51732899,1812.5,1812.4,0.12296157]
[1746458566555,11.03481651,1812.5,1812.1,6.27603922]
[1746458566856,5.51732899,1812.5,1812.2,0.12338601]
[1746458567184,5.51732899,1812.5,1812.1,8.85990687]
[1746458567388,5.51732899,1812.5,1812.2,0.12724345]
[1746458567592,5.51732899,1812.5,1812.1,14.3781527]
[1746458567889,5.51732899,1812.5,1812.2,0.12724345]
[1746458568185,5.5171118,1812.6,1812.2,1.45053889]
[1746458568390,5.5171118,1812.6,1812.3,0.12703122]
[1746458569190,5.51725555,1812.5,1812.3,0.12703122]
[1746458569391,5.51754579,1812.4,1812.1,6.27607979]
[1746458569614,5.51754579,1812.4,1812.2,0.12724345]
[1746458569889,5.51737869,1812.5,1812.1,6.27614966]
[1746458570058,5.51737869,1812.5,1812.3,0.12703122]
[1746458570259,5.51737869,1812.5,1812.2,0.12724345]
[1746458570470,5.51737869,1812.5,1812.4,0.12681901]
[1746458570669,6.62082501,1812.5,1812.3,0.12703122]
[1746458570967,6.62082501,1812.5,1812.4,0.12681901]
[1746458571188,6.62082501,1812.5,1812.1,11.79439076]
[1746458571390,5.51737869,1812.5,1812.2,0.12724345]
[1746458571690,5.51765702,1812.4,1812.1,0.7578]
[1746458571872,5.51765702,1812.4,1812.3,0.12730297]
[1746458572079,5.51765702,1812.4,1812.2,0.1275152]
[1746458572268,5.51765702,1812.4,1812.3,0.12730297]
[1746458572588,5.51765702,1812.4,1812.1,6.27621046]
[1746458572790,0.3101763,1812.4,1812.2,0.1275152]
[1746458572979,0.3101763,1812.4,1812.1,7.45568789]
[1746458573182,5.82772644,1812.4,1812.2,0.1275152]
[1746458573381,5.82772644,1812.4,1812.1,6.27621046]
[1746458573588,5.82772644,1812.4,1812.2,0.1275152]
[1746458573775,5.51755014,1812.4,1812.1,6.27621046]
[1746458574097,5.51755014,1812.4,1812.2,0.1275152]
[1746458574280,5.51785024,1812.3,1812.2,0.1275152]
[1746458574478,5.51755014,1812.4,1812.1,0.7578]
[1746458574696,5.51755014,1812.4,1812.2,0.1275152]
[1746458574997,5.51755014,1812.4,1812.1,6.27622499]
[1746458575207,5.51755014,1812.4,1812.2,0.1275152]
[1746458575500,5.51755014,1812.4,1812.1,7.45570388]
[1746458575701,5.51755014,1812.4,1812.3,0.12730297]
[1746458575884,5.51742822,1812.5,1812.2,5.64566191]
[1746458576071,13.42047762,1812.8,1812.3,0.12730297]
[1746458576072,5.51675168,1812.7,1812.3,0.12730297]
[1746458576262,11.03366338,1812.7,1812.4,0.7506]
[1746458576462,5.51693699,1812.6,1812.3,0.12730297]
[1746458576701,5.51693699,1812.6,1812.5,0.12709599]
[1746458576900,5.8276637,1812.6,1812.4,0.12730818]
[1746458577064,5.8276637,1812.6,1812.5,0.12709599]
[1746458577495,11.34489513,1812.6,1812.2,6.26853561]
[1746458577701,5.8276637,1812.6,1812.5,0.12709599]
[1746458577891,5.8276637,1812.6,1812.3,5.5178259]
[1746458578201,5.8276637,1812.6,1812.4,0.12730818]
[1746458578362,5.82796808,1812.5,1812.2,7.44721963]
[1746458578566,0.31072671,1812.5,1812.3,0.12752038]
[1746458579186,0.31072671,1812.4,1812.3,0.12752038]
[1746458579867,0.31072671,1812.4,1812.3,1.49899407]
[1746458580872,0.31072671,1812.4,1812.3,0.12752038]
[1746458584507,0.31072671,1812.4,1812.3,5.64537062]
[1746458584717,0.31072671,1812.4,1812.3,5.70054494]
[1746458585218,5.51708558,1812.6,1812.3,5.70054494]
[1746458585420,5.51708558,1812.6,1812.3,5.64537062]
[1746458586177,0.31095513,1812.5,1812.3,5.64537062]
[1746458586788,5.82834166,1812.5,1812.3,0.12752038]
[1746458587126,1.44549785,1812.5,1812.3,0.12752038]
[1746458587315,0.31095513,1812.4,1812.3,0.12752038]
[1746458588410,0.31095513,1812.4,1812.3,6.48584421]
[1746458589103,0.31095513,1812.4,1812.3,0.96799397]
[1746458589321,5.82805631,1812.6,1812.3,0.91282038]
[1746458589788,5.5173337,1812.5,1812.3,0.91282038]
[1746458589994,0.31095513,1812.4,1812.3,0.91282038]
[1746458590528,0.31092898,1812.4,1812.3,0.91282038]
[1746458590732,0.31093072,1812.4,1812.3,6.43067062]
[1746458591138,5.51695335,1812.6,1812.3,6.43067062]
[1746458591647,0.31091604,1812.5,1812.3,6.43067062]
[1746458591842,0.31091604,1812.5,1812.3,6.43049245]
[1746458592033,0.31091604,1812.5,1812.4,5.51754579]
[1746458592340,0.31091604,1812.5,1812.4,0.12714509]
[1746458592538,0.31091604,1812.5,1812.4,5.64469088]
[1746458592704,0.31091604,1812.5,1812.4,5.51754579]
[1746458592904,0.31091604,1812.5,1812.4,5.64469088]
[1746458593138,0.31089528,1812.5,1812.4,6.96515882]
[1746458593639,0.31089528,1812.5,1812.4,1.44761303]
[1746458593843,0.31089528,1812.5,1812.4,0.12714509]
[1746458594016,0.31089528,1812.5,1812.3,13.07766301]
[1746458594214,0.31089528,1812.5,1812.4,5.64469088]
[1746458594666,0.31089528,1812.5,1812.4,0.12714509]
[1746458595055,0.31089528,1812.5,1812.3,7.55998298]
[1746458595354,0.31089528,1812.5,1812.4,0.12714509]
[1746458595704,5.51663323,1812.7,1812.3,7.55998298]
[1746458595939,0.31087001,1812.5,1812.4,0.12714509]
[1746458596143,0.31087001,1812.5,1812.3,6.30293374]
[1746458596344,0.31087001,1812.5,1812.4,0.12714509]
[1746458596548,5.82811138,1812.5,1812.3,0.7853]
[1746458596742,5.82811138,1812.5,1812.4,0.12692776]
[1746458596945,6.96263487,1812.5,1812.2,9.82102809]
[1746458597134,5.51768218,1812.4,1812.3,0.12713996]
[1746458598240,6.96263487,1812.5,1812.3,0.12713996]
[1746458598639,0.31087001,1812.4,1812.3,0.12713996]
[1746458599738,5.8284158,1812.4,1812.3,0.12713996]
[1746458599936,7.28418679,1812.4,1812.3,0.12713996]
[1746458600340,7.28418679,1812.4,1812.3,0.16287494]
[1746458600741,7.28424864,1812.4,1812.3,0.16287494]
[1746458601269,10.28424864,1812.4,1812.3,0.16287494]
[1746458601783,8.51785024,1812.3,1812.2,3.68102809]
[1746458601946,10.09806013,1812.3,1812.2,3.84422138]
[1746458602454,5.51785024,1812.3,1812.2,3.84422138]
[1746458602828,5.51785024,1812.3,1812.2,0.16319329]
[1746458602829,5.8287821,1812.3,1812.2,0.16319329]
[1746458603337,5.82834081,1812.3,1811.9,11.65889421]
[1746458603542,11.03657716,1812.2,1812.0,0.16383008]
[1746458603744,5.51845924,1812.1,1812.0,0.16383008]
[1746458603935,5.82894981,1812.1,1811.8,12.40946372]
[1746458604134,5.82894981,1812.1,1811.9,0.16414853]
[1746458604467,5.82915427,1812.1,1811.8,6.8901]
[1746458604669,5.82915427,1812.1,1811.9,0.16414853]
[1746458604833,5.5186637,1812.1,1811.8,6.8901]
[1746458605034,5.5186637,1812.1,1811.9,0.16414853]
[1746458605235,5.5186637,1812.1,1811.8,6.8901]
[1746458605435,5.5186637,1812.1,1811.9,0.16414853]
[1746458605736,5.5186637,1812.1,1812.0,0.16383008]
[1746458605936,5.5186637,1812.1,1811.8,6.8901]
[1746458606137,5.5186637,1812.1,1811.9,0.16414853]
[1746458606329,5.5186637,1812.1,1811.8,12.40945815]
[1746458606544,5.5186637,1812.1,1811.9,0.16414853]
[1746458606747,5.51818973,1812.2,1811.8,12.40925172]
[1746458607049,5.51818973,1812.2,1811.9,1.4050737]
[1746458607264,5.51818973,1812.2,1811.9,0.16414853]
[1746458607450,5.51818973,1812.2,1811.8,12.40925172]
[1746458607759,5.51863085,1812.1,1811.9,0.16414853]
[1746458607967,5.51863085,1812.1,1811.8,6.8901]
[1746458608139,5.51879648,1812.0,1811.9,0.16414853]
[1746458608338,5.51863085,1812.1,1811.8,6.8901]
[1746458608659,5.51863085,1812.1,1811.9,0.16414853]
[1746458608863,5.51863085,1812.1,1811.7,5.5194985]
[1746458609160,5.51863085,1812.1,1811.8,0.71641687]
[1746458609662,5.51883974,1812.0,1811.8,0.71641687]
[1746458609860,5.51866814,1812.1,1811.8,0.16446702]
[1746458610867,5.51828221,1812.2,1811.8,6.45427033]
[1746458611539,5.51772663,1812.4,1811.9,5.51881588]
[1746458611744,0.31004716,1812.3,1812.2,5.51815472]
[1746458611967,0.31004716,1812.3,1812.2,7.13167101]
[1746458612164,0.31004716,1812.3,1812.2,7.90227101]
[1746458612573,5.51714309,1812.6,1812.2,7.90211415]
[1746458612872,3.0,1812.8,1812.2,7.90211415]
[1746458613051,5.51712776,1812.6,1812.2,7.90211415]
[1746458613252,5.51750571,1812.5,1812.2,0.90408704]
[1746458614047,5.82757119,1812.4,1812.2,0.13348704]
[1746458614250,5.82757119,1812.4,1812.0,6.32663962]
[1746458614453,5.82757119,1812.4,1812.1,5.65213931]
[1746458614768,0.31002394,1812.4,1812.2,0.56521393]
[1746458615072,5.51754579,1812.4,1812.3,0.13323237]
[1746458615486,5.51754579,1812.4,1812.0,11.84520972]
[1746458615688,5.51754579,1812.4,1812.3,0.13323237]